fUST/lending_fUST_20251230
["ID","MTS","AMOUNT","RATE_DAILY","PERIOD"]
[400076057,1767070249040,-332.21841405,0.00027917,2]
[400076058,1767070249050,-3115.87655471,0.000309,2]
[400076059,1767070249059,-11198.35,0.000322,2]
[400076060,1767070249068,-11198.35,0.000339,14]
[400076061,1767070249077,-44155.28078344,0.0003465,4]
[400076067,1767070488040,222.32,0.00012828,2]
[400076068,1767070565268,216.66,0.00012823,2]
[400076070,1767070643116,211.15,0.00012825,2]
[400076071,1767070720377,205.77,0.00012801,2]
[400076072,1767070798046,200.53,0.00012801,2]
[400076074,1767070875685,195.43,0.00012831,2]
[400076081,1767071412826,-190.46,0.00012931,2]
[400076082,1767071412849,-287.95484601,0.00012931,2]
[400076083,1767071414749,-200.13631066,0.00012931,2]
[400076096,1767071431986,-114.90884333,0.00012931,2]
[400076098,1767071431996,-195.32962898,0.0001305,2]
[400076100,1767071432005,-669.0,0.00013168,2]
[400076102,1767071432014,-350.86205617,0.00013169,2]
[400076106,1767071432041,-470.13195095,0.00013169,2]
[400076108,1767071432052,-189.19599288,0.00013169,2]
[400076110,1767071432061,-300.0,0.00013169,2]
[400076111,1767071432070,-218.15810817,0.0001317,2]
[400076113,1767071432079,-500.0,0.0001317,2]
[400076115,1767071432088,-500.0,0.0001317,2]
[400076117,1767071432097,-500.0,0.0001317,2]
[400076119,1767071432107,-500.0,0.0001317,2]
[400076121,1767071432116,-500.0,0.0001317,2]
[400076123,1767071432125,-647.9127964,0.0001317,2]
[400076125,1767071432135,-530.39754737,0.0001317,2]
[400076127,1767071432144,-88.18389165,0.0001317,2]
[400076129,1767071432155,-411.81610835,0.0001317,2]
[400076131,1767071432164,-500.0,0.0001317,2]
[400076133,1767071432173,-500.0,0.0001317,2]
[400076135,1767071432182,-500.0,0.0001317,2]
[400076137,1767071432191,-297.33210405,0.0001317,2]
[400076139,1767071432201,-500.0,0.0001317,2]
[400076141,1767071432210,-500.0,0.0001317,2]
[400076143,1767071432220,-241.767319,0.0001317,2]
[400076144,1767071432233,-162.92277941,0.0001317,2]
[400076146,1767071432242,-642.00402669,0.0001317,2]
[400076148,1767071432251,-500.0,0.0001317,2]
[400076150,1767071432261,-500.0,0.0001317,2]
[400076152,1767071432271,-300.0,0.00013433,2]
[400076154,1767071432280,-300.0,0.00013433,2]
[400076156,1767071432290,-300.0,0.00013433,2]
[400076158,1767071432301,-300.0,0.00013433,2]
[400076160,1767071432310,-300.0,0.00013433,2]
[400076162,1767071432320,-300.0,0.00013433,2]
[400076164,1767071432329,-300.0,0.00013433,2]
[400076166,1767071432338,-300.0,0.00013433,2]
[400076168,1767071432348,-300.0,0.00013433,2]
[400076170,1767071432357,-300.0,0.00013433,2]
[400076172,1767071432367,-300.0,0.00013433,2]
[400076174,1767071432376,-300.0,0.00013433,2]
[400076176,1767071432385,-300.0,0.00013433,2]
[400076178,1767071432395,-300.0,0.00013433,2]
[400076180,1767071432405,-300.0,0.00013433,2]
[400076181,1767071432414,-600.0,0.00013433,2]
[400076183,1767071432424,-285.68,0.00013519,2]
[400076185,1767071432435,-661.477084,0.00013699,2]
[400076187,1767071432446,-380.91,0.00014106,2]
[400076189,1767071432455,-5857.9161163,0.000144,2]
[400076190,1767071432465,-476.14,0.00014694,2]
[400076191,1767071432475,-720.0,0.00014776,2]
[400076192,1767071432484,-230.48896219,0.0001505,2]
[400076193,1767071432494,-571.37,0.00015282,2]
[400076194,1767071432503,-269.83898634,0.00015419,2]
[400076195,1767071432512,-203.25643473,0.00015448,2]
[400076196,1767071432522,-666.6,0.0001587,2]
[400076197,1767071432532,-3000.0,0.00016,2]
[400076198,1767071432541,-3000.0,0.0001601,2]
[400076199,1767071432551,-3000.0,0.0001602,2]
[400076200,1767071432560,-3000.0,0.0001603,2]
[400076201,1767071432570,-3000.0,0.0001604,2]
[400076202,1767071432579,-3000.0,0.0001605,2]
[400076203,1767071432588,-3000.0,0.0001606,2]
[400076204,1767071432598,-3000.0,0.0001607,2]
[400076205,1767071432607,-3000.0,0.0001608,2]
[400076206,1767071432617,-3000.0,0.0001609,2]
[400076207,1767071432627,-3000.0,0.000161,2]
[400076208,1767071432638,-3000.0,0.0001611,2]
[400076209,1767071432648,-3000.0,0.0001612,2]
[400076210,1767071432658,-3000.0,0.0001613,2]
[400076211,1767071432667,-3000.0,0.0001614,2]
[400076212,1767071432677,-3000.0,0.0001615,2]
[400076213,1767071432686,-444.50943765,0.0001616,2]
[400076214,1767071432699,-2210.85325948,0.0001616,2]
[400076215,1767071432710,-344.63730287,0.0001616,2]
[400076216,1767071432719,-3000.0,0.0001617,2]
[400076217,1767071432729,-1924.66280321,0.0001618,2]
[400076218,1767071432740,-330.25242726,0.0001618,2]
[400076231,1767071438239,-745.08476953,0.0001618,2]
[400076232,1767071438250,-3000.0,0.0001619,2]
[400076233,1767071438260,-3000.0,0.000162,2]
[400076234,1767071438271,-3000.0,0.0001621,2]
[400076235,1767071438280,-3000.0,0.0001622,2]
[400076236,1767071438291,-3000.0,0.0001623,2]
[400076237,1767071438302,-3000.0,0.0001624,2]
[400076238,1767071438312,-3000.0,0.0001625,2]
[400076239,1767071438322,-864.0,0.00016254,2]
[400076240,1767071438331,-3000.0,0.0001626,2]
[400076241,1767071438340,-3000.0,0.0001627,2]
[400076242,1767071438350,-3000.0,0.0001628,2]
[400076243,1767071438360,-3000.0,0.0001629,2]
[400076244,1767071438370,-3000.0,0.000163,2]
[400076245,1767071438379,-3000.0,0.0001631,2]
[400076246,1767071438389,-3000.0,0.0001632,2]
[400076247,1767071438398,-5133.461537,0.0001633,2]
[400076248,1767071438408,-761.82,0.00016458,2]
[400076249,1767071438417,-857.05,0.00017045,2]
[400076250,1767071438427,-265.64829541,0.0001705,2]
[400076251,1767071438437,-250.0,0.00017086,2]
[400076252,1767071438447,-952.28,0.00017633,2]
[400076253,1767071438456,-1000.0,0.00017879,2]
[400076254,1767071438465,-303.06970209,0.000189,2]
[400076255,1767071438475,-300.80762862,0.0001905,2]
[400076256,1767071438484,-303.06970209,0.00019089,2]
[400076257,1767071438494,-1000.0,0.000191,2]
[400076258,1767071438503,-1026.43,0.000192,2]
[400076259,1767071438513,-163.0,0.000192,2]
[400076260,1767071438522,-167.63,0.000192,2]
[400076261,1767071438531,-303.06970209,0.00019278,2]
[400076262,1767071438541,-303.06970209,0.00019467,2]
[400076263,1767071438550,-303.06970209,0.00019656,2]
[400076264,1767071438560,-1000.0,0.00019667,2]
[400076265,1767071438569,-244.0,0.00019667,2]
[400076266,1767071438579,-166.35,0.000197,2]
[400076267,1767071438588,-454.60455314,0.00019845,4]
[400076268,1767071438598,-454.60455314,0.00020034,4]
[400076269,1767071438607,-661.477084,0.00020187,2]
[400076270,1767071438616,-454.60455314,0.00020223,4]
[400076271,1767071438627,-310.95548795,0.00020412,4]
[400076272,1767071438637,-205.69,0.00020548,5]
[400076273,1767071438646,-1041.66666667,0.00020873,2]
[400076274,1767071438656,-96037.67640377,0.0002099,2]
[400076275,1767071438665,-3000.0,0.00021,2]
[400076276,1767071438675,-357.6,0.00021008,2]
[400076277,1767071438685,-3000.0,0.0002101,2]
[400076278,1767071438694,-3000.0,0.0002102,2]
[400076279,1767071438703,-3000.0,0.0002103,2]
[400076280,1767071438713,-3000.0,0.0002104,2]
[400076281,1767071438722,-335.96696184,0.0002105,2]
[400076282,1767071438732,-3000.0,0.0002105,2]
[400076283,1767071438741,-3000.0,0.0002106,2]
[400076284,1767071438750,-3000.0,0.0002107,2]
[400076285,1767071438759,-3000.0,0.0002108,2]
[400076286,1767071438769,-3000.0,0.0002109,2]
[400076287,1767071438779,-3000.0,0.000211,2]
[400076288,1767071438788,-3000.0,0.0002111,2]
[400076289,1767071438797,-3000.0,0.0002112,2]
[400076290,1767071438807,-3000.0,0.0002113,2]
[400076291,1767071438816,-160.0,0.0002113,2]
[400076292,1767071438826,-3000.0,0.0002114,2]
[400076293,1767071438835,-3000.0,0.0002115,2]
[400076294,1767071438845,-3000.0,0.0002116,2]
[400076295,1767071438855,-3000.0,0.0002117,2]
[400076296,1767071438865,-1893.6049054,0.0002117,2]
[400076297,1767071438875,-3000.0,0.0002118,2]
[400076298,1767071438884,-3000.0,0.0002119,2]
[400076299,1767071438894,-3000.0,0.000212,2]
[400076300,1767071438904,-3000.0,0.0002121,2]
[400076301,1767071438914,-3000.0,0.0002122,2]
[400076302,1767071438923,-3000.0,0.0002123,2]
[400076303,1767071438932,-3000.0,0.0002124,2]
[400076304,1767071438942,-3000.0,0.0002125,2]
[400076305,1767071438951,-351.09879701,0.0002125,2]
[400076306,1767071438961,-3000.0,0.0002126,2]
[400076307,1767071438971,-3000.0,0.0002127,2]
[400076308,1767071438981,-3000.0,0.0002128,2]
[400076309,1767071438991,-3000.0,0.0002129,2]
[400076310,1767071439000,-3000.0,0.000213,2]
[400076311,1767071439009,-10376.51,0.000213,2]
[400076312,1767071439019,-3000.0,0.0002131,2]
[400076313,1767071439028,-3000.0,0.0002132,2]
[400076314,1767071439038,-3000.0,0.0002133,2]
[400076315,1767071439048,-3000.0,0.0002134,2]
[400076316,1767071439058,-3000.0,0.0002135,2]
[400076317,1767071439068,-3000.0,0.0002136,2]
[400076318,1767071439079,-3000.0,0.0002137,2]
[400076319,1767071439089,-3000.0,0.0002138,2]
[400076320,1767071439099,-3000.0,0.0002139,2]
[400076321,1767071439109,-3000.0,0.000214,2]
[400076322,1767071439119,-3000.0,0.0002141,2]
[400076323,1767071439129,-3000.0,0.0002142,2]
[400076324,1767071439139,-5222.628058,0.0002143,2]
[400076325,1767071439148,-1000.0,0.00021634,10]
[400076326,1767071439158,-492.0,0.00021634,10]
[400076327,1767071439168,-260.0,0.00021678,2]
[400076328,1767071439178,-269.33315418,0.00021917,2]
[400076329,1767071439187,-500.72316954,0.00021917,2]
[400076330,1767071439197,-180.69490441,0.00021917,2]
[400076331,1767071439206,-481.30405838,0.00021917,2]
[400076332,1767071439215,-602.50773801,0.00021917,2]
[400076333,1767071439225,-504.70511967,0.00021917,2]
[400076334,1767071439237,-433.93542274,0.00021917,2]
[400076335,1767071439247,-217.61030986,0.00021917,2]
[400076336,1767071439255,-234.09703627,0.00021917,2]
[400076337,1767071439264,-231.29106344,0.00021917,2]
[400076338,1767071439273,-393.17886351,0.00021917,2]
[400076339,1767071439284,-342.42427954,0.00021917,2]
[400076340,1767071439294,-252.77574783,0.00021917,2]
[400076341,1767071439304,-1023.47217641,0.00021917,2]
[400076342,1767071439313,-333.92618675,0.00021917,2]
[400076343,1767071439323,-433.42504771,0.00021917,2]
[400076344,1767071439333,-408.62031573,0.00021917,2]
[400076345,1767071439343,-319.94055293,0.00021917,2]
[400076346,1767071439352,-230.65898868,0.00021917,2]
[400076347,1767071439361,-210.76009802,0.00021917,2]
[400076348,1767071439371,-262.90121912,0.00021917,2]
[400076349,1767071439380,-170.27376167,0.00021917,2]
[400076350,1767071439390,-252.67655097,0.00021917,2]
[400076351,1767071439400,-287.73030606,0.00021917,2]
[400076352,1767071439409,-458.50221432,0.00021917,2]
[400076353,1767071439418,-479.81812409,0.00021917,2]
[400076354,1767071439427,-621.60965745,0.00021917,2]
[400076355,1767071439436,-500.71951521,0.00021917,2]
[400076356,1767071439445,-285.81164378,0.00021917,2]
[400076357,1767071439455,-495.99114627,0.00021917,2]
[400076358,1767071439463,-413.36013582,0.00021917,2]
[400076359,1767071439473,-285.47899851,0.00021917,2]
[400076360,1767071439482,-501.2051815,0.00021917,2]
[400076361,1767071439491,-504.58997569,0.00021917,2]
[400076362,1767071439500,-500.0,0.00021917,2]
[400076363,1767071439509,-176.45954335,0.00021917,2]
[400076364,1767071439519,-287.08953983,0.00021917,2]
[400076365,1767071439528,-504.45343671,0.00021917,2]
[400076366,1767071439537,-348.13867843,0.00021917,2]
[400076367,1767071439546,-251.46424513,0.00021917,2]
[400076368,1767071439555,-251.40795676,0.00021917,2]
[400076369,1767071439565,-333.92290273,0.00021917,2]
[400076370,1767071439574,-273.21298075,0.00021917,2]
[400076371,1767071439583,-290.29849253,0.00021917,2]
[400076372,1767071439592,-510.83887357,0.00021917,2]
[400076373,1767071439602,-523.45254658,0.00021917,2]
[400076374,1767071439611,-248.26170506,0.00021917,2]
[400076375,1767071439621,-226.89443186,0.00021917,2]
[400076376,1767071439630,-427.12423668,0.00021917,2]
[400076377,1767071439639,-502.04455924,0.00021917,2]
[400076378,1767071439648,-449.59900032,0.00021917,2]
[400076379,1767071439658,-539.26104911,0.00021917,2]
[400076380,1767071439667,-277.83974303,0.00021917,2]
[400076381,1767071439676,-553.39742545,0.00021917,2]
[400076382,1767071439685,-427.7689353,0.00021917,2]
[400076383,1767071439695,-462.69119327,0.00021917,2]
[400076384,1767071439704,-461.88902203,0.00021917,2]
[400076385,1767071439713,-363.68099683,0.00021917,2]
[400076386,1767071439723,-458.8505797,0.00021917,2]
[400076387,1767071439732,-286.70770784,0.00021917,2]
[400076388,1767071439741,-267.3602502,0.00021917,2]
[400076389,1767071439750,-502.29520556,0.00021917,2]
[400076390,1767071439766,-512.66522346,0.00021917,2]
[400076391,1767071439780,-512.29840009,0.00021917,2]
[400076392,1767071439790,-293.07868979,0.00021917,2]
[400076393,1767071439800,-440.86023557,0.00021917,2]
[400076394,1767071439809,-509.16060867,0.00021917,2]
[400076395,1767071439819,-417.46274433,0.00021917,2]
[400076396,1767071439959,-311.40132827,0.00021917,2]
[400076397,1767071439969,-352.39098907,0.00021917,2]
[400076398,1767071439978,-478.07414937,0.00021917,2]
[400076399,1767071439988,-202.81752215,0.00021917,2]
[400076400,1767071439998,-447.97991166,0.00021917,2]
[400076401,1767071440007,-512.34251123,0.00021917,2]
[400076402,1767071440017,-187.59533833,0.00021917,2]
[400076403,1767071440026,-533.10444288,0.00021917,2]
[400076404,1767071440036,-528.21056679,0.00021917,2]
[400076406,1767071440046,-236.61985417,0.00021917,2]
[400076407,1767071440056,-269.915319,0.00021917,2]
[400076408,1767071440066,-370.28388052,0.00021917,2]
[400076409,1767071440075,-638.97867053,0.00021917,2]
[400076410,1767071440085,-468.90629687,0.00021917,2]
[400076411,1767071440095,-192.71983482,0.00021917,2]
[400076412,1767071440104,-500.0,0.00021917,2]
[400076413,1767071440113,-591.65441113,0.00021917,2]
[400076414,1767071440123,-403.96121089,0.00021917,2]
[400076415,1767071440132,-400.33130937,0.00021917,2]
[400076416,1767071440142,-520.96277231,0.00021917,2]
[400076417,1767071440152,-308.41590209,0.00021917,2]
[400076418,1767071440161,-514.79568651,0.00021917,2]
[400076419,1767071440170,-422.94798478,0.00021917,2]
[400076420,1767071440180,-474.75266645,0.00021917,2]
[400076421,1767071440190,-275.59920934,0.00021917,2]
[400076422,1767071440199,-507.99851295,0.00021917,2]
[400076423,1767071440209,-488.66177969,0.00021917,2]
[400076424,1767071440218,-571.21392777,0.00021917,2]
[400076425,1767071440229,-497.71228405,0.00021917,2]
[400076426,1767071440243,-500.0,0.00021917,2]
[400076427,1767071440252,-509.18604531,0.00021917,2]
[400076428,1767071440262,-547.50276936,0.00021917,2]
[400076429,1767071440271,-383.57132978,0.00021917,2]
[400076430,1767071440282,-501.12093149,0.00021917,2]
[400076431,1767071440291,-264.9392192,0.00021917,2]
[400076432,1767071440300,-316.16014628,0.00021917,2]
[400076433,1767071440310,-478.21623539,0.00021917,2]
[400076434,1767071440319,-550.90127323,0.00021917,2]
[400076435,1767071440329,-500.0,0.00021917,2]
[400076436,1767071440339,-509.70359709,0.00021917,2]
[400076437,1767071440348,-464.76334376,0.00021917,2]
[400076438,1767071440357,-500.0,0.00021917,2]
[400076439,1767071440366,-295.2511899,0.00021917,2]
[400076440,1767071440375,-426.20730668,0.00021917,2]
[400076441,1767071440384,-359.95549187,0.00021917,2]
[400076442,1767071440393,-454.07829285,0.00021917,2]
[400076443,1767071440404,-216.60341199,0.00021917,2]
[400076444,1767071440413,-218.777766,0.00021917,2]
[400076445,1767071440423,-476.90769747,0.00021917,2]
[400076446,1767071440432,-494.20939552,0.00021917,2]
[400076447,1767071440441,-500.0,0.00021917,2]
[400076448,1767071440450,-497.98100807,0.00021917,2]
[400076449,1767071440460,-500.0,0.00021917,2]
[400076450,1767071440469,-501.22712139,0.00021917,2]
[400076451,1767071440478,-408.64927459,0.00021917,2]
[400076452,1767071440488,-486.74530578,0.00021917,2]
[400076453,1767071440497,-253.69247233,0.00021917,2]
[400076454,1767071440507,-223.21748018,0.00021917,2]
[400076455,1767071440517,-500.0,0.00021917,2]
[400076456,1767071440526,-354.67878225,0.00021917,2]
[400076457,1767071440535,-367.5163094,0.00021917,2]
[400076458,1767071440545,-486.84467399,0.00021917,2]
[400076459,1767071440554,-488.40239306,0.00021917,2]
[400076460,1767071440563,-322.31792125,0.00021917,2]
[400076461,1767071440572,-380.57291504,0.00021917,2]
[400076462,1767071440581,-256.42020615,0.00021917,2]
[400076463,1767071440591,-206.65781947,0.00021917,2]
[400076464,1767071440600,-484.32908546,0.00021917,2]
[400076465,1767071440610,-244.9309608,0.00021917,2]
[400076466,1767071440620,-292.27108544,0.00021917,2]
[400076467,1767071440630,-222.40611764,0.00021917,2]
[400076468,1767071440639,-229.74671603,0.00021917,2]
[400076469,1767071440648,-468.20528792,0.00021917,2]
[400076470,1767071440659,-335.91898352,0.00021917,2]
[400076471,1767071440670,-361.11966938,0.00021917,2]
[400076472,1767071440679,-331.31461136,0.00021917,2]
[400076473,1767071440688,-332.84203168,0.00021917,2]
[400076474,1767071440697,-500.0,0.00021917,2]
[400076475,1767071440707,-468.46876956,0.00021917,2]
[400076476,1767071440716,-1000.1468578,0.00021917,2]
[400076477,1767071440725,-534.80878098,0.00021917,2]
[400076478,1767071440735,-543.01533026,0.00021917,2]
[400076479,1767071440744,-496.84809073,0.00021917,2]
[400076480,1767071440753,-507.39394315,0.00021917,2]
[400076481,1767071440763,-415.78305326,0.00021917,2]
[400076482,1767071440772,-226.51399345,0.00021917,2]
[400076483,1767071440781,-276.79786927,0.00021917,2]
[400076484,1767071440791,-491.35885865,0.00021917,2]
[400076485,1767071440800,-464.92212663,0.00021917,2]
[400076486,1767071440809,-626.49848798,0.00021917,2]
[400076487,1767071440819,-427.11920997,0.00021917,2]
[400076488,1767071440828,-464.56381766,0.00021917,2]
[400076489,1767071440839,-573.23461641,0.00021917,2]
[400076490,1767071440848,-519.17552996,0.00021917,2]
[400076491,1767071440858,-288.94230664,0.00021917,2]
[400076492,1767071440868,-182.95883851,0.00021917,2]
[400076493,1767071440877,-509.52473583,0.00021917,2]
[400076494,1767071440887,-194.53004279,0.00021917,2]
[400076495,1767071440897,-295.22030358,0.00021917,2]
[400076496,1767071440907,-214.62430021,0.00021917,2]
[400076497,1767071440917,-500.0,0.00021917,2]
[400076498,1767071440927,-452.76867007,0.00021917,2]
[400076499,1767071440936,-254.64616056,0.00021917,2]
[400076500,1767071440946,-193.5526784,0.00021917,2]
[400076501,1767071440956,-352.12809256,0.00021917,2]
[400076502,1767071440966,-233.95773104,0.00021917,2]
[400076503,1767071440975,-198.30678278,0.00021917,2]
[400076504,1767071440984,-251.7142983,0.00021917,2]
[400076505,1767071440994,-232.50445623,0.00021917,2]
[400076506,1767071441004,-285.08202354,0.00021917,2]
[400076507,1767071441013,-191.99719017,0.00021917,2]
[400076508,1767071441023,-408.46147524,0.00021917,2]
[400076509,1767071441032,-1358.99,0.00021917,2]
[400076510,1767071441042,-592.33106367,0.00021917,2]
[400076511,1767071441051,-193.15983236,0.00021917,2]
[400076512,1767071441060,-529.43122651,0.00021917,2]
[400076513,1767071441070,-473.87727349,0.00021917,2]
[400076514,1767071441080,-276.59515798,0.00021917,2]
[400076515,1767071441090,-202.94786336,0.00021917,2]
[400076516,1767071441100,-331.36752874,0.00021917,2]
[400076517,1767071441109,-501.33640111,0.00021917,2]
[400076518,1767071441119,-598.60330821,0.00021917,2]
[400076519,1767071441128,-431.25014834,0.00021917,2]
[400076520,1767071441138,-490.39925731,0.00021917,2]
[400076521,1767071441148,-314.24489004,0.00021917,2]
[400076522,1767071441159,-229.72161579,0.00021917,2]
[400076523,1767071441169,-500.42949407,0.00021917,2]
[400076524,1767071441179,-343.1745665,0.00021917,2]
[400076525,1767071441188,-164.65948183,0.00021917,2]
[400076526,1767071441197,-265.15378107,0.00021917,2]
[400076527,1767071441207,-502.21013442,0.00021917,2]
[400076528,1767071441216,-500.0,0.00021917,2]
[400076529,1767071441226,-461.31122067,0.00021917,2]
[400076530,1767071441239,-201.20744653,0.00021917,2]
[400076531,1767071441248,-385.91074519,0.00021917,2]
[400076532,1767071441257,-500.0,0.00021917,2]
[400076533,1767071441267,-164.75840004,0.00021917,2]
[400076534,1767071441277,-476.48352169,0.00021917,2]
[400076535,1767071441286,-547.30025947,0.00021917,2]
[400076536,1767071441295,-526.06878392,0.00021917,2]
[400076537,1767071441305,-400.76687336,0.00021917,2]
[400076538,1767071441314,-497.56652883,0.00021917,2]
[400076539,1767071441324,-500.0,0.00021917,2]
[400076540,1767071441333,-412.67053547,0.00021917,2]
[400076541,1767071441343,-161.71508024,0.00021917,2]
[400076542,1767071441352,-240.1167908,0.00021917,2]
[400076543,1767071441362,-289.23720001,0.00021917,2]
[400076544,1767071441372,-264.58772049,0.00021917,2]
[400076545,1767071441381,-266.37885615,0.00021917,2]
[400076546,1767071441390,-384.41444147,0.00021917,2]
[400076547,1767071441400,-209.24808648,0.00021917,2]
[400076548,1767071441410,-500.0,0.00021917,2]
[400076549,1767071441419,-500.0,0.00021917,2]
[400076550,1767071441428,-350.31194786,0.00021917,2]
[400076551,1767071441437,-238.25503049,0.00021917,2]
[400076552,1767071441447,-500.0,0.00021917,2]
[400076553,1767071441456,-255.68642444,0.00021917,2]
[400076554,1767071441465,-486.97399568,0.00021917,2]
[400076555,1767071441475,-409.14025866,0.00021917,2]
[400076556,1767071441484,-350.89172555,0.00021917,2]
[400076557,1767071441493,-500.85426906,0.00021917,2]
[400076558,1767071441503,-271.49305234,0.00021917,2]
[400076559,1767071441512,-388.23781073,0.00021917,2]
[400076560,1767071441521,-465.38951167,0.00021917,2]
[400076561,1767071441530,-203.68765285,0.00021917,2]
[400076562,1767071441539,-500.0,0.00021917,2]
[400076563,1767071441548,-367.57,0.00021917,2]
[400076564,1767071441557,-452.29249023,0.00021917,2]
[400076565,1767071441567,-476.28746272,0.00021917,2]
[400076566,1767071441576,-381.63449651,0.00021917,2]
[400076567,1767071441590,-500.0,0.00021917,2]
[400076568,1767071441602,-1000.0,0.00021917,2]
[400076569,1767071441611,-502.82394057,0.00021917,2]
[400076570,1767071441622,-312.10792285,0.00021917,2]
[400076571,1767071441634,-218.40529926,0.00021917,2]
[400076572,1767071441644,-504.94852854,0.00021917,2]
[400076573,1767071441655,-500.0,0.00021917,2]
[400076574,1767071441664,-500.0,0.00021917,2]
[400076575,1767071441674,-190.15443372,0.00021917,2]
[400076576,1767071441684,-446.47983257,0.00021917,2]
[400076577,1767071441693,-500.0,0.00021917,2]
[400076578,1767071441709,-471.20943293,0.00021917,2]
[400076579,1767071441719,-500.0,0.00021917,2]
[400076580,1767071441729,-420.59897434,0.00021917,2]
[400076581,1767071441738,-500.0,0.00021917,2]
[400076582,1767071441748,-166.77059855,0.00021917,2]
[400076583,1767071441757,-223.69019589,0.00021917,2]
[400076584,1767071441767,-264.81256574,0.00021917,2]
[400076585,1767071441775,-501.06130346,0.00021917,2]
[400076586,1767071441784,-233.18406558,0.00021917,2]
[400076587,1767071441794,-449.52632896,0.00021917,2]
[400076588,1767071441804,-207.55302901,0.00021917,2]
[400076589,1767071441813,-356.03025943,0.00021917,2]
[400076590,1767071441823,-501.88652616,0.00021917,2]
[400076591,1767071441832,-460.4,0.00021917,2]
[400076592,1767071441842,-270.05297428,0.00021917,2]
[400076593,1767071441851,-501.95207316,0.00021917,2]
[400076594,1767071441860,-223.46052725,0.00021917,2]
[400076595,1767071441870,-284.54001776,0.00021917,2]
[400076596,1767071441879,-457.80075992,0.00021917,2]
[400076597,1767071441888,-443.63652163,0.00021917,2]
[400076598,1767071441898,-500.0,0.00021917,2]
[400076599,1767071441908,-266.15990212,0.00021917,2]
[400076600,1767071441918,-186.1588418,0.00021917,2]
[400076601,1767071441927,-222.15719484,0.00021917,2]
[400076602,1767071441936,-502.6980363,0.00021917,2]
[400076603,1767071441945,-366.98241924,0.00021917,2]
[400076604,1767071441954,-296.77052659,0.00021917,2]
[400076605,1767071441964,-500.0,0.00021917,2]
[400076606,1767071441974,-420.00377493,0.00021917,2]
[400076607,1767071441983,-322.25574061,0.00021917,2]
[400076608,1767071441993,-472.60378467,0.00021917,2]
[400076609,1767071442003,-321.91286166,0.00021917,2]
[400076610,1767071442012,-258.00658869,0.00021917,2]
[400076611,1767071442021,-239.75984511,0.00021917,2]
[400076612,1767071442030,-190.49324555,0.00021917,2]
[400076613,1767071442039,-502.33993876,0.00021917,2]
[400076614,1767071442048,-232.92010454,0.00021917,2]
[400076615,1767071442057,-467.62343338,0.00021917,2]
[400076616,1767071442066,-474.57310077,0.00021917,2]
[400076617,1767071442076,-313.88086763,0.00021917,2]
[400076618,1767071442085,-500.87450242,0.00021917,2]
[400076619,1767071442094,-500.0,0.00021917,2]
[400076620,1767071442104,-449.86221356,0.00021917,2]
[400076621,1767071442113,-297.37714473,0.00021917,2]
[400076622,1767071442123,-500.50013322,0.00021917,2]
[400076623,1767071442133,-500.0,0.00021917,2]
[400076624,1767071442142,-229.70253267,0.00021917,2]
[400076625,1767071442152,-319.72849913,0.00021917,2]
[400076626,1767071442161,-443.63446877,0.00021917,2]
[400076627,1767071442171,-490.76843281,0.00021917,2]
[400076628,1767071442181,-274.58472757,0.00021917,2]
[400076629,1767071442190,-534.62451166,0.00021917,2]
[400076630,1767071442199,-188.22075113,0.00021917,2]
[400076631,1767071442209,-500.31919433,0.00021917,2]
[400076632,1767071442219,-338.6906951,0.00021917,2]
[400076633,1767071442315,-500.08288355,0.00021917,2]
[400076634,1767071442325,-200.0,0.00021918,6]
[400076635,1767071442335,-163.28,0.00022,2]
[400076636,1767071442344,-584.51,0.00022,7]
[400076637,1767071442353,-1023.47217641,0.00022191,2]
[400076638,1767071442363,-500.0,0.00022191,2]
[400076639,1767071442372,-500.0,0.00022191,2]
[400076640,1767071442381,-500.0,0.00022191,2]